[Event "NJSK 2022 Jeugd C"]
[Site "Almelo, Netherlands"]
[Date "2022.05.02"]
[Round "2.4"]
[White "Ponomarev, Ivan"]
[Black "Kurt, Sascha"]
[Result "1/2-1/2"]
[TimeControl "90min + 30sec/move"]
[WhiteElo "1744"]
[BlackElo "1834"]

1. e4 {[%clk 01:30:58]} {[%emt 00:00:02]} c5 {[%clk 01:30:55]} {[%emt
00:00:05]} 2. Nf3 {[%clk 01:31:25]} {[%emt 00:00:04]} e6 {[%clk 01:31:18]}
{[%emt 00:00:07]} 3. c3 {[%clk 01:31:50]} {[%emt 00:00:05]} Nf6 {[%clk
01:31:43]} {[%emt 00:00:04]} 4. e5 {[%clk 01:32:02]} {[%emt 00:00:19]} Nd5
{[%clk 01:32:08]} {[%emt 00:00:05]} 5. d4 {[%clk 01:32:10]} {[%emt 00:00:22]}
cxd4 {[%clk 01:32:33]} {[%emt 00:00:05]} 6. cxd4 {[%clk 01:32:34]} {[%emt
00:00:06]} d6 {[%clk 01:32:59]} {[%emt 00:00:03]} 7. Nc3 {[%clk 01:28:17]}
{[%emt 00:04:48]} Nxc3 {[%clk 01:33:25]} {[%emt 00:00:04]} 8. bxc3 {[%clk
01:28:40]} {[%emt 00:00:07]} Qc7 {[%clk 01:33:54]} {[%emt 00:00:02]} 9. Qc2
{[%clk 01:24:14]} {[%emt 00:04:56]} Nd7 {[%clk 01:33:33]} {[%emt 00:00:50]} 10.
Bf4 {[%clk 01:20:26]} {[%emt 00:04:18]} dxe5 {[%clk 01:32:39]} {[%emt
00:01:24]} 11. Nxe5 {[%clk 01:16:11]} {[%emt 00:04:46]} Bd6 {[%clk 01:32:59]}
{[%emt 00:00:09]} 12. Bb5 {[%clk 01:15:33]} {[%emt 00:01:08]} O-O {[%clk
01:31:39]} {[%emt 00:01:50]} 13. Nxd7 {[%clk 01:12:00]} {[%emt 00:04:02]} Bxd7
{[%clk 01:32:04]} {[%emt 00:00:06]} 14. Bxd6 {[%clk 01:12:03]} {[%emt
00:00:27]} Qxd6 {[%clk 01:32:29]} {[%emt 00:00:05]} 15. Bxd7 {[%clk 01:07:45]}
{[%emt 00:04:48]} Qxd7 {[%clk 01:32:54]} {[%emt 00:00:05]} 16. O-O {[%clk
01:08:01]} {[%emt 00:00:14]} Rac8 {[%clk 01:32:44]} {[%emt 00:00:40]} 17. Rfc1
{[%clk 01:05:31]} {[%emt 00:03:00]} Rc4 {[%clk 01:32:57]} {[%emt 00:00:16]} 18.
Qb3 {[%clk 01:00:43]} {[%emt 00:05:19]} Rfc8 {[%clk 01:32:05]} {[%emt
00:01:22]} 19. Rc2 {[%clk 01:00:04]} {[%emt 00:01:09]} Qc6 {[%clk 01:31:51]}
{[%emt 00:00:42]} 20. Rac1 {[%clk 00:59:29]} {[%emt 00:01:07]} b5 {[%clk
01:31:28]} {[%emt 00:00:52]} 21. a3 {[%clk 00:58:12]} {[%emt 00:01:48]} a5
{[%clk 01:31:44]} {[%emt 00:00:14]} 22. h3 {[%clk 00:53:04]} {[%emt 00:05:38]}
Kf8 {[%clk 01:30:48]} {[%emt 00:01:25]} 23. Rb1 {[%clk 00:46:34]} {[%emt
00:07:00]} b4 {[%clk 01:30:16]} {[%emt 00:01:03]} 24. axb4 {[%clk 00:46:02]}
{[%emt 00:01:02]} axb4 {[%clk 01:30:39]} {[%emt 00:00:07]} 25. g3 {[%clk
00:39:31]} {[%emt 00:07:01]} Ke8 {[%clk 01:27:37]} {[%emt 00:03:32]} 26. Rd1
{[%clk 00:28:26]} {[%emt 00:11:35]} Rxc3 {[%clk 01:26:52]} {[%emt 00:01:15]} 27.
Rxc3 {[%clk 00:28:50]} {[%emt 00:00:06]} bxc3 {[%clk 01:27:00]} {[%emt
00:00:22]} 28. Rc1 {[%clk 00:24:46]} {[%emt 00:04:34]} c2 {[%clk 01:26:58]}
{[%emt 00:00:31]} 29. Qd3 {[%clk 00:24:21]} {[%emt 00:00:56]} g6 {[%clk
01:26:15]} {[%emt 00:01:13]} 30. h4 {[%clk 00:23:23]} {[%emt 00:01:27]} Qc4
{[%clk 01:24:23]} {[%emt 00:02:22]} 31. Qe4 {[%clk 00:20:44]} {[%emt 00:03:10]}
Ke7 {[%clk 01:21:14]} {[%emt 00:03:38]} 32. Qf4 {[%clk 00:17:11]} {[%emt
00:04:05]} Rd8 {[%clk 01:15:31]} {[%emt 00:06:11]} 33. Qe4 {[%clk 00:16:28]}
{[%emt 00:01:14]} Rc8 {[%clk 01:10:54]} {[%emt 00:05:06]} 34. Qb7+ {[%clk
00:12:52]} {[%emt 00:04:06]} Rc7 {[%clk 01:11:05]} {[%emt 00:00:19]} 35. Qb2
{[%clk 00:13:15]} {[%emt 00:00:06]} Qc3 {[%clk 01:09:47]} {[%emt 00:01:48]} 36.
Qb6 {[%clk 00:12:34]} {[%emt 00:01:12]} Rd7 {[%clk 01:09:04]} {[%emt 00:01:14]}
37. Kg2 {[%clk 00:09:04]} {[%emt 00:04:00]} Rxd4 {[%clk 01:09:00]} {[%emt
00:00:34]} 38. Rxc2 {[%clk 00:09:08]} {[%emt 00:00:27]} Qxc2 {[%clk 01:08:01]}
{[%emt 00:01:28]} 39. Qxd4 {[%clk 00:09:30]} {[%emt 00:00:08]} Qc6+ {[%clk
01:07:42]} {[%emt 00:00:49]} 40. Kg1 {[%clk 00:09:36]} {[%emt 00:00:23]} Qd5
{[%clk 01:07:26]} {[%emt 00:00:46]} 41. Qb4+ {[%clk 00:09:47]} {[%emt
00:00:19]} Kf6 {[%clk 01:07:26]} {[%emt 00:00:29]} 42. Qf4+ {[%clk 00:08:54]}
{[%emt 00:01:24]} Kg7 {[%clk 01:07:44]} {[%emt 00:00:12]} 43. Qe3 {[%clk
00:07:52]} {[%emt 00:01:32]} e5 {[%clk 01:07:42]} {[%emt 00:00:33]} 44. Kh2
{[%clk 00:04:44]} {[%emt 00:03:37]} Qd4 {[%clk 01:07:42]} {[%emt 00:00:29]} 45.
Qf3 {[%clk 00:04:10]} {[%emt 00:01:05]} h5 {[%clk 01:06:35]} {[%emt 00:01:37]}
46. Qe2 {[%clk 00:02:21]} {[%emt 00:02:19]} e4 {[%clk 01:05:18]} {[%emt
00:01:48]} 47. Kg2 {[%clk 00:02:13]} {[%emt 00:00:38]} Qd5 {[%clk 01:03:47]}
{[%emt 00:02:00]} 48. Qe3 {[%clk 00:02:12]} {[%emt 00:00:31]} Qf5 {[%clk
01:03:14]} {[%emt 00:01:03]} 49. Qc3+ {[%clk 00:02:07]} {[%emt 00:00:35]} Kh7
{[%clk 01:03:24]} {[%emt 00:00:20]} 50. Qe3 {[%clk 00:01:52]} {[%emt 00:00:45]}
Qg4 {[%clk 01:01:46]} {[%emt 00:02:08]} 51. Qb3 {[%clk 00:01:47]} {[%emt
00:00:34]} Kg7 {[%clk 01:00:46]} {[%emt 00:01:31]} 52. Qc3+ {[%clk 00:01:43]}
{[%emt 00:00:35]} Kg8 {[%clk 01:00:22]} {[%emt 00:00:54]} 53. Qb3 {[%clk
00:01:14]} {[%emt 00:00:58]} Qe2 {[%clk 00:59:23]} {[%emt 00:01:29]} 54. Qb8+
{[%clk 00:01:16]} {[%emt 00:00:29]} Kg7 {[%clk 00:59:17]} {[%emt 00:00:34]} 55.
Qe5+ {[%clk 00:01:37]} {[%emt 00:00:10]} Kh7 {[%clk 00:59:18]} {[%emt
00:00:29]} 56. Qf4 {[%clk 00:01:45]} {[%emt 00:00:22]} Qc4 {[%clk 00:59:23]}
{[%emt 00:00:25]} 57. Qe3 {[%clk 00:01:35]} {[%emt 00:00:41]} Kg7 {[%clk
00:58:22]} {[%emt 00:01:30]} 58. Qa3 {[%clk 00:01:25]} {[%emt 00:00:39]} Qd3
{[%clk 00:58:17]} {[%emt 00:00:36]} 59. Qxd3 {[%clk 00:01:06]} {[%emt
00:00:50]} exd3 {[%clk 00:58:46]} {[%emt 00:00:01]} 60. Kf3 {[%clk 00:01:28]}
{[%emt 00:00:07]} Kf6 {[%clk 00:58:38]} {[%emt 00:00:39]} 61. Ke3 {[%clk
00:01:53]} {[%emt 00:00:04]} Kf5 {[%clk 00:58:33]} {[%emt 00:00:36]} 62. f3
{[%clk 00:00:48]} {[%emt 00:01:35]} Ke5 {[%clk 00:57:37]} {[%emt 00:01:25]} 63.
Kxd3 {[%clk 00:01:05]} {[%emt 00:00:13]} Kd5 {[%clk 00:57:40]} {[%emt
00:00:27]} 64. Ke3 {[%clk 00:00:49]} {[%emt 00:00:46]} Ke5 {[%clk 00:57:20]}
{[%emt 00:00:51]} 65. Kd3 {[%clk 00:00:54]} {[%emt 00:00:25]} f5 {[%clk
00:57:20]} {[%emt 00:00:29]} 66. Ke3 {[%clk 00:00:43]} {[%emt 00:00:42]} f4+
{[%clk 00:57:21]} {[%emt 00:00:29]} 67. gxf4+ {[%clk 00:00:53]} {[%emt
00:00:19]} Kf5 {[%clk 00:57:45]} {[%emt 00:00:06]} 68. Ke2 {[%clk 00:01:09]}
{[%emt 00:00:13]} Kxf4 {[%clk 00:58:08]} {[%emt 00:00:08]} 69. Kf2 {[%clk
00:01:35]} {[%emt 00:00:04]} Kf5 {[%clk 00:58:08]} {[%emt 00:00:30]} 70. Kf1
{[%clk 00:01:05]} {[%emt 00:01:00]} Ke5 {[%clk 00:57:26]} {[%emt 00:01:13]} 71.
Ke1 {[%clk 00:00:40]} {[%emt 00:00:54]} Kd4 {[%clk 00:57:24]} {[%emt 00:00:33]}
72. Kd2 {[%clk 00:01:04]} {[%emt 00:00:06]} Ke5 {[%clk 00:57:40]} {[%emt
00:00:14]} 73. Ke3 {[%clk 00:01:17]} {[%emt 00:00:17]} Kf5 {[%clk 00:58:05]}
{[%emt 00:00:05]} 1/2-1/2

[Event "NJSK 2022 Jeugd C"]
[Site "Almelo, Netherlands"]
[Date "2022.05.02"]
[Round "2.5"]
[White "Zecha, Oscar"]
[Black "Kazarjan, Gachatur"]
[Result "1/2-1/2"]
[TimeControl "90min + 30sec/move"]
[WhiteElo "1826"]
[BlackElo "1661"]

1. d4 {[%clk 01:30:57]} {[%emt 00:00:02]} Nf6 {[%clk 01:30:56]} {[%emt
00:00:05]} 2. c4 {[%clk 01:31:26]} {[%emt 00:00:01]} e6 {[%clk 01:31:20]}
{[%emt 00:00:06]} 3. Nf3 {[%clk 01:31:54]} {[%emt 00:00:02]} d5 {[%clk
01:31:43]} {[%emt 00:00:07]} 4. g3 {[%clk 01:32:18]} {[%emt 00:00:06]} c5
{[%clk 01:32:00]} {[%emt 00:00:14]} 5. cxd5 {[%clk 01:32:04]} {[%emt 00:00:43]}
exd5 {[%clk 01:32:10]} {[%emt 00:00:21]} 6. Bg2 {[%clk 01:32:23]} {[%emt
00:00:10]} Nc6 {[%clk 01:32:24]} {[%emt 00:00:16]} 7. O-O {[%clk 01:30:40]}
{[%emt 00:02:13]} Be7 {[%clk 01:32:48]} {[%emt 00:00:07]} 8. dxc5 {[%clk
01:31:03]} {[%emt 00:00:07]} Bxc5 {[%clk 01:32:30]} {[%emt 00:00:48]} 9. a3
{[%clk 01:31:22]} {[%emt 00:00:11]} a5 {[%clk 01:32:36]} {[%emt 00:00:25]} 10.
Bg5 {[%clk 01:29:17]} {[%emt 00:02:35]} Be7 {[%clk 01:31:57]} {[%emt 00:01:07]}
11. Nc3 {[%clk 01:27:08]} {[%emt 00:02:40]} Be6 {[%clk 01:29:54]} {[%emt
00:02:33]} 12. Rc1 {[%clk 01:23:51]} {[%emt 00:03:46]} Ne4 {[%clk 01:26:08]}
{[%emt 00:04:17]} 13. Bxe7 {[%clk 01:21:41]} {[%emt 00:02:38]} Nxc3 {[%clk
01:25:10]} {[%emt 00:01:30]} 14. Bxd8 {[%clk 01:20:31]} {[%emt 00:01:39]} Nxd1
{[%clk 01:25:34]} {[%emt 00:00:08]} 15. Rfxd1 {[%clk 01:20:51]} {[%emt
00:00:09]} Rxd8 {[%clk 01:25:55]} {[%emt 00:00:09]} 16. Nd4 {[%clk 01:20:11]}
{[%emt 00:01:10]} Nxd4 {[%clk 01:13:40]} {[%emt 00:12:44]} 17. Rxd4 {[%clk
01:20:31]} {[%emt 00:00:10]} O-O {[%clk 01:13:45]} {[%emt 00:00:25]} 18. Rcd1
{[%clk 01:15:29]} {[%emt 00:05:32]} Rd6 {[%clk 01:09:34]} {[%emt 00:04:41]} 19.
e4 {[%clk 01:14:25]} {[%emt 00:01:35]} Rc8 {[%clk 01:08:42]} {[%emt 00:01:22]}
20. exd5 {[%clk 01:13:09]} {[%emt 00:01:45]} Bd7 {[%clk 01:08:56]} {[%emt
00:00:16]} 21. h4 {[%clk 00:54:27]} {[%emt 00:19:12]} b5 {[%clk 01:06:02]}
{[%emt 00:03:23]} 22. R1d2 {[%clk 00:50:39]} {[%emt 00:04:19]} g6 {[%clk
01:04:30]} {[%emt 00:02:01]} 23. Re2 {[%clk 00:43:20]} {[%emt 00:07:50]} Kf8
{[%clk 01:03:18]} {[%emt 00:01:42]} 24. Rdd2 {[%clk 00:42:32]} {[%emt
00:01:14]} Bf5 {[%clk 01:02:51]} {[%emt 00:01:01]} 1/2-1/2

[Event "NJSK 2022 Jeugd C"]
[Site "Almelo, Netherlands"]
[Date "2022.05.02"]
[Round "2.6"]
[White "Mohebbinezhad, Parsa"]
[Black "De Winter, Arthur"]
[Result "0-1"]
[TimeControl "90min + 30sec/move"]
[WhiteElo "1600"]
[BlackElo "2138"]

1. e4 {[%clk 01:30:59]} {[%emt 00:00:01]} c5 {[%clk 01:30:57]} {[%emt
00:00:03]} 2. Nf3 {[%clk 01:31:22]} {[%emt 00:00:06]} Nc6 {[%clk 01:31:23]}
{[%emt 00:00:04]} 3. d4 {[%clk 01:31:48]} {[%emt 00:00:05]} cxd4 {[%clk
01:31:50]} {[%emt 00:00:02]} 4. Nxd4 {[%clk 01:32:12]} {[%emt 00:00:07]} Nf6
{[%clk 01:32:17]} {[%emt 00:00:03]} 5. Nc3 {[%clk 01:32:34]} {[%emt 00:00:08]}
e5 {[%clk 01:32:43]} {[%emt 00:00:03]} 6. Nf5 {[%clk 01:24:29]} {[%emt
00:08:36]} d6 {[%clk 01:22:31]} {[%emt 00:10:42]} 7. Ne3 {[%clk 01:23:23]}
{[%emt 00:01:36]} Be7 {[%clk 01:22:01]} {[%emt 00:00:59]} 8. Ned5 {[%clk
01:20:48]} {[%emt 00:03:06]} Nxd5 {[%clk 01:21:25]} {[%emt 00:01:06]} 9. Nxd5
{[%clk 01:20:50]} {[%emt 00:00:27]} O-O {[%clk 01:21:38]} {[%emt 00:00:17]} 10.
Be3 {[%clk 01:18:53]} {[%emt 00:02:28]} Bg5 {[%clk 01:20:00]} {[%emt 00:02:08]}
11. Bxg5 {[%clk 01:09:07]} {[%emt 00:10:16]} Qxg5 {[%clk 01:20:26]} {[%emt
00:00:03]} 12. h4 {[%clk 01:08:55]} {[%emt 00:00:43]} Qg6 {[%clk 01:19:52]}
{[%emt 00:01:04]} 13. Qd3 {[%clk 01:09:06]} {[%emt 00:00:19]} f5 {[%clk
01:15:39]} {[%emt 00:04:42]} 14. exf5 {[%clk 01:00:52]} {[%emt 00:08:45]} Bxf5
{[%clk 01:15:58]} {[%emt 00:00:10]} 15. Qb3 {[%clk 01:00:23]} {[%emt 00:00:59]}
Kh8 {[%clk 01:15:50]} {[%emt 00:00:38]} 16. c3 {[%clk 00:56:53]} {[%emt
00:04:00]} Be6 {[%clk 01:07:40]} {[%emt 00:08:41]} 17. O-O-O {[%clk 00:39:58]}
{[%emt 00:17:24]} Nd4 {[%clk 01:06:53]} {[%emt 00:01:17]} 18. cxd4 {[%clk
00:37:58]} {[%emt 00:02:31]} Rac8+ {[%clk 01:07:09]} {[%emt 00:00:14]} 19. Kd2
{[%clk 00:36:57]} {[%emt 00:01:31]} Bxd5 {[%clk 01:04:23]} {[%emt 00:03:15]} 20.
Qe3 {[%clk 00:30:33]} {[%emt 00:06:54]} Rc2+ {[%clk 00:55:49]} {[%emt
00:09:04]} 21. Ke1 {[%clk 00:30:44]} {[%emt 00:00:19]} exd4 {[%clk 00:56:06]}
{[%emt 00:00:13]} 22. Qd3 {[%clk 00:25:31]} {[%emt 00:05:43]} Re8+ {[%clk
00:56:21]} {[%emt 00:00:16]} 23. Be2 {[%clk 00:25:33]} {[%emt 00:00:28]} Rexe2+
{[%clk 00:56:20]} {[%emt 00:00:31]} 24. Qxe2 {[%clk 00:25:45]} {[%emt
00:00:18]} Rxe2+ {[%clk 00:56:47]} {[%emt 00:00:03]} 25. Kxe2 {[%clk 00:26:06]}
{[%emt 00:00:08]} Qc2+ {[%clk 00:57:06]} {[%emt 00:00:11]} 26. Rd2 {[%clk
00:25:02]} {[%emt 00:01:34]} Qe4+ {[%clk 00:57:29]} {[%emt 00:00:08]} 27. Kd1
{[%clk 00:24:48]} {[%emt 00:00:43]} Qb1+ {[%clk 00:57:54]} {[%emt 00:00:06]} 28.
Ke2 {[%clk 00:25:07]} {[%emt 00:00:11]} Qxh1 {[%clk 00:58:20]} {[%emt
00:00:03]} 29. g3 {[%clk 00:24:40]} {[%emt 00:00:58]} Qe4+ {[%clk 00:58:42]}
{[%emt 00:00:08]} 30. Kd1 {[%clk 00:24:01]} {[%emt 00:01:08]} d3 {[%clk
00:58:40]} {[%emt 00:00:33]} 31. Kc1 {[%clk 00:24:08]} {[%emt 00:00:23]} Qe1+
{[%clk 00:59:04]} {[%emt 00:00:05]} 32. Rd1 {[%clk 00:24:31]} {[%emt 00:00:07]}
d2+ {[%clk 00:59:32]} {[%emt 00:00:02]} 33. Kc2 {[%clk 00:24:39]} {[%emt
00:00:22]} Be4+ {[%clk 01:00:00]} {[%emt 00:00:03]} 34. Kc3 {[%clk 00:24:46]}
{[%emt 00:00:24]} Qxd1 {[%clk 01:00:26]} {[%emt 00:00:03]} 35. Kd4 {[%clk
00:24:41]} {[%emt 00:00:35]} Qe2 {[%clk 01:00:51]} {[%emt 00:00:04]} 36. Kc3
{[%clk 00:24:51]} {[%emt 00:00:21]} d1=Q {[%clk 01:01:17]} {[%emt 00:00:04]} 37.
Kb4 {[%clk 00:23:39]} {[%emt 00:01:41]} Qxb2+ {[%clk 01:01:44]} {[%emt
00:00:04]} 38. Ka5 {[%clk 00:23:35]} {[%emt 00:00:34]} Qb6# {[%clk 01:01:39]}
{[%emt 00:00:04]} 0-1

[Event "NJSK 2022 Jeugd C"]
[Site "Almelo, Netherlands"]
[Date "2022.05.02"]
[Round "2.7"]
[White "Van Batenburg, Mees"]
[Black "Dekker, Thiemen"]
[Result "1/2-1/2"]
[TimeControl "90min + 30sec/move"]
[WhiteElo "1713"]
[BlackElo "1935"]

1. d4 {[%clk 01:30:53]} {[%emt 00:00:06]} d5 {[%clk 01:30:56]} {[%emt
00:00:05]} 2. Nc3 {[%clk 01:31:04]} {[%emt 00:00:19]} Nf6 {[%clk 01:31:22]}
{[%emt 00:00:05]} 3. Bf4 {[%clk 01:31:26]} {[%emt 00:00:07]} c5 {[%clk
01:31:48]} {[%emt 00:00:04]} 4. e3 {[%clk 01:31:13]} {[%emt 00:00:43]} cxd4
{[%clk 01:32:12]} {[%emt 00:00:07]} 5. exd4 {[%clk 01:31:36]} {[%emt 00:00:07]}
a6 {[%clk 01:32:36]} {[%emt 00:00:07]} 6. Nf3 {[%clk 01:31:49]} {[%emt
00:00:16]} Nc6 {[%clk 01:32:58]} {[%emt 00:00:08]} 7. Ne5 {[%clk 01:32:09]}
{[%emt 00:00:09]} Bd7 {[%clk 01:33:18]} {[%emt 00:00:11]} 8. Nxc6 {[%clk
01:32:06]} {[%emt 00:00:32]} Bxc6 {[%clk 01:33:33]} {[%emt 00:00:15]} 9. Qf3
{[%clk 01:32:06]} {[%emt 00:00:30]} e6 {[%clk 01:32:07]} {[%emt 00:01:56]} 10.
Bd3 {[%clk 01:29:46]} {[%emt 00:02:50]} Rc8 {[%clk 01:30:21]} {[%emt 00:02:17]}
11. O-O {[%clk 01:28:57]} {[%emt 00:01:18]} Qb6 {[%clk 01:29:36]} {[%emt
00:01:16]} 12. Be5 {[%clk 01:05:20]} {[%emt 00:24:06]} Be7 {[%clk 01:22:54]}
{[%emt 00:07:12]} 13. Rab1 {[%clk 01:03:11]} {[%emt 00:02:40]} O-O {[%clk
01:21:15]} {[%emt 00:02:08]} 14. Ne2 {[%clk 00:50:56]} {[%emt 00:12:46]} Bb5
{[%clk 01:16:35]} {[%emt 00:05:10]} 15. c3 {[%clk 00:44:17]} {[%emt 00:07:08]}
Bxd3 {[%clk 01:12:33]} {[%emt 00:04:32]} 16. Qxd3 {[%clk 00:44:21]} {[%emt
00:00:26]} Nd7 {[%clk 01:08:14]} {[%emt 00:04:50]} 17. Bg3 {[%clk 00:41:33]}
{[%emt 00:03:17]} Qd8 {[%clk 01:06:21]} {[%emt 00:02:23]} 18. b3 {[%clk
00:39:04]} {[%emt 00:03:00]} b5 {[%clk 01:04:28]} {[%emt 00:02:23]} 19. Rfc1
{[%clk 00:32:06]} {[%emt 00:07:26]} Nb6 {[%clk 01:00:51]} {[%emt 00:04:08]} 20.
h3 {[%clk 00:21:04]} {[%emt 00:11:32]} Rc6 {[%clk 00:57:23]} {[%emt 00:03:59]}
21. Qf3 {[%clk 00:16:17]} {[%emt 00:05:17]} Qd7 {[%clk 00:54:13]} {[%emt
00:03:40]} 22. Nf4 {[%clk 00:14:55]} {[%emt 00:01:52]} Rfc8 {[%clk 00:53:10]}
{[%emt 00:01:33]} 23. Rc2 {[%clk 00:12:17]} {[%emt 00:03:08]} Bf8 {[%clk
00:45:47]} {[%emt 00:07:52]} 1/2-1/2